fUST/lending_fUST_20250806
["ID","MTS","AMOUNT","RATE_DAILY","PERIOD"]
[377484232,1754426684346,500.0,0.00024032,2]
[377484233,1754426684374,343.20209901,0.00024032,2]
[377484234,1754426684404,1041.19620046,0.00024032,2]
[377484235,1754426684432,500.0,0.00024032,2]
[377484236,1754426684463,500.0,0.00024032,2]
[377484237,1754426684490,500.0,0.00024032,2]
[377484238,1754426684518,500.0,0.00024032,2]
[377484239,1754426684549,1041.19620046,0.00024032,2]
[377484240,1754426684577,500.0,0.00024032,2]
[377484241,1754426684605,500.0,0.00024032,2]
[377484242,1754426684638,1041.19620046,0.00024032,2]
[377484243,1754426684669,500.0,0.00024032,2]
[377484244,1754426684701,500.0,0.00024032,2]
[377484245,1754426684734,228.50112303,0.00024032,2]
[377484246,1754426684762,500.0,0.00024032,2]
[377484247,1754426684792,1041.19620046,0.00024032,2]
[377484248,1754426684826,500.0,0.00024032,2]
[377484249,1754426684857,1041.19620046,0.00024032,2]
[377484250,1754426684886,500.0,0.00024032,2]
[377484251,1754426684926,500.0,0.00024032,2]
[377484252,1754426684958,1041.19620046,0.00024032,2]
[377484253,1754426684987,500.0,0.00024032,2]
[377484254,1754426685021,389.82102443,0.00024032,2]
[377484255,1754426685045,651.37517603,0.00024032,2]
[377484256,1754426685196,500.0,0.00024032,2]
[377484257,1754426685228,500.0,0.00024032,2]
[377484258,1754426685260,1041.19620046,0.00024032,2]
[377484259,1754426685292,500.0,0.00024032,2]
[377484260,1754426685323,500.0,0.00024032,2]
[377484261,1754426685355,1041.19620046,0.00024032,2]
[377484262,1754426685384,500.0,0.00024032,2]
[377484263,1754426685425,1041.19620046,0.00024032,2]
[377484264,1754426685463,500.0,0.00024032,2]
[377484265,1754426685495,1041.19620046,0.00024032,2]
[377484266,1754426685528,500.0,0.00024032,2]
[377484267,1754426685558,1041.19620046,0.00024032,2]
[377484268,1754426685587,500.0,0.00024032,2]
[377484269,1754426685625,1041.19620046,0.00024032,2]
[377484270,1754426685655,500.0,0.00024032,2]
[377484271,1754426685689,500.0,0.00024032,2]
[377484272,1754426685726,1041.19620046,0.00024032,2]
[377484273,1754426685755,500.0,0.00024032,2]
[377484274,1754426685785,500.0,0.00024032,2]
[377484275,1754426685816,1041.19620046,0.00024032,2]
[377484276,1754426685846,500.0,0.00024032,2]
[377484277,1754426685878,1041.19620046,0.00024032,2]
[377484278,1754426685913,500.0,0.00024032,2]
[377484279,1754426685944,477.85901983,0.00024032,2]
[377484280,1754426685969,22.14098017,0.00024032,2]
[377484281,1754426686007,1041.19620046,0.00024032,2]
[377484282,1754426686041,500.0,0.00024032,2]
[377484283,1754426686086,1041.19620046,0.00024032,2]
[377484284,1754426686117,500.0,0.00024032,2]
[377484285,1754426686150,500.0,0.00024032,2]
[377484286,1754426686183,257.53,0.000251,6]
[377484287,1754426686214,1041.19620046,0.00024032,2]
[377484288,1754426686246,500.0,0.00024032,2]
[377484289,1754426686283,1041.19620046,0.00024032,2]
[377484290,1754426686312,500.0,0.00024032,2]
[377484291,1754426686347,1041.19620046,0.00024032,2]
[377484292,1754426686378,500.0,0.00024032,2]
[377484293,1754426686412,1041.19620046,0.00024032,2]
[377484294,1754426686441,500.0,0.00024032,2]
[377484295,1754426686475,1041.19620046,0.00024032,2]
[377484296,1754426686524,1041.19620046,0.00024032,2]
[377484297,1754426686564,500.0,0.00024032,2]
[377484298,1754426686596,1041.19620046,0.00024032,2]
[377484299,1754426686628,500.0,0.00024032,2]
[377484300,1754426686658,1041.19620046,0.00024032,2]
[377484301,1754426686686,500.0,0.00024032,2]
[377484302,1754426686731,1041.19620046,0.00024032,2]
[377484303,1754426686760,500.0,0.00024032,2]
[377484304,1754426687074,524.70081477,0.00024032,2]
[377484305,1754426687099,516.49538569,0.00024032,2]
[377484306,1754426687127,500.0,0.00024032,2]
[377484307,1754426687179,1041.19620046,0.00024032,2]
[377484308,1754426687218,1041.19620046,0.00024032,2]
[377484309,1754426687248,1041.19620046,0.00024032,2]
[377484310,1754426687279,500.0,0.00024032,2]
[377484311,1754426687308,500.0,0.00024032,2]
[377484312,1754426687341,500.0,0.00024032,2]
[377484313,1754426687378,500.0,0.00024032,2]
[377484314,1754426687408,1041.19620046,0.00024032,2]
[377484315,1754426687442,1041.19620046,0.00024032,2]
[377484316,1754426687474,500.0,0.00024032,2]
[377484317,1754426687504,1041.19620046,0.00024032,2]
[377484318,1754426687532,500.0,0.00024032,2]
[377484319,1754426687567,1041.19620046,0.00024032,2]
[377484320,1754426687596,1041.19620046,0.00024032,2]
[377484321,1754426687631,500.0,0.00024032,2]
[377484322,1754426687871,1041.19620046,0.00024032,2]
[377484323,1754426687911,1041.19620046,0.00024032,2]
[377484324,1754426688000,1041.19620046,0.00024032,2]
[377484325,1754426688039,1041.19620046,0.00024032,2]
[377484326,1754426688074,489.15020879,0.00024032,2]
[377484327,1754426688103,552.04599167,0.00024032,2]
[377484328,1754426688292,1041.19620046,0.00024032,2]
[377484329,1754426688324,1041.19620046,0.00024032,2]
[377484330,1754426688359,1041.19620046,0.00024032,2]
[377484331,1754426688390,1041.19620046,0.00024032,2]
[377484332,1754426688494,500.0,0.00024032,2]
[377484333,1754426688645,5000.0,0.000252,8]
[377484334,1754426688682,500.0,0.00024032,2]
[377484335,1754426688718,500.0,0.00024032,2]
[377484336,1754426688748,500.0,0.00024032,2]
[377484337,1754426688776,500.0,0.00024032,2]
[377484338,1754426688805,500.0,0.00024032,2]
[377484339,1754426688838,607.89412542,0.00024032,2]
[377484340,1754426688866,500.0,0.00024032,2]
[377484341,1754426688902,500.0,0.00024032,2]
[377484342,1754426688931,500.0,0.00024032,2]
[377484343,1754426688973,500.0,0.00024032,2]
[377484344,1754426689000,500.0,0.00024032,2]
[377484345,1754426689028,500.0,0.00024032,2]
[377484346,1754426689069,500.0,0.00024032,2]
[377484347,1754426689101,500.0,0.00024032,2]
[377484348,1754426689128,500.0,0.00024032,2]
[377484349,1754426689161,500.0,0.00024032,2]
[377484350,1754426689193,500.0,0.00024032,2]
[377484351,1754426689225,500.0,0.00024032,2]
[377484352,1754426689257,500.0,0.00024032,2]
[377484353,1754426689292,500.0,0.00024032,2]
[377484354,1754426689329,344.28952688,0.00024032,2]
[377484355,1754426689361,500.0,0.00024032,2]
[377484356,1754426689406,500.0,0.00024032,2]
[377484357,1754426689441,500.0,0.00024032,2]
[377484358,1754426689478,330.98555419,0.00024032,2]
[377484359,1754426689503,169.01444581,0.00024032,2]
[377484360,1754426689535,500.0,0.00024032,2]
[377484361,1754426689564,500.0,0.00024032,2]
[377484362,1754426689607,500.0,0.00024032,2]
[377484363,1754426689638,500.0,0.00024032,2]
[377484364,1754426689679,500.0,0.00024032,2]
[377484365,1754426689708,500.0,0.00024032,2]
[377484366,1754426689742,500.0,0.00024032,2]
[377484367,1754426689775,500.0,0.00024032,2]
[377484368,1754426689809,500.0,0.00024032,2]
[377484369,1754426689847,500.0,0.00024032,2]
[377484370,1754426689883,500.0,0.00024032,2]
[377484371,1754426689919,500.0,0.00024032,2]
[377484372,1754426690107,500.0,0.00024032,2]
[377484373,1754426690141,500.0,0.00024032,2]
[377484374,1754426690170,500.0,0.00024032,2]
[377484375,1754426690215,500.0,0.00024032,2]
[377484376,1754426690255,500.0,0.00024032,2]
[377484377,1754426690284,500.0,0.00024032,2]
[377484378,1754426690313,500.0,0.00024032,2]
[377484379,1754426690348,500.0,0.00024032,2]
[377484380,1754426690400,500.0,0.00024032,2]
[377484381,1754426690428,500.0,0.00024032,2]
[377484382,1754426690457,500.0,0.00024032,2]
[377484383,1754426696973,500.0,0.00024032,2]
[377484384,1754426697005,1041.19620046,0.00024032,2]
[377484385,1754426697035,500.0,0.00024032,2]
[377484386,1754426697066,500.0,0.00024032,2]
[377484387,1754426697097,1041.19620046,0.00024032,2]
[377484388,1754426697127,500.0,0.00024032,2]
[377484389,1754426697158,1041.19620046,0.00024032,2]
[377484390,1754426697187,500.0,0.00024032,2]
[377484391,1754426697222,207.39695281,0.00024032,2]
[377484392,1754426697250,833.79924765,0.00024032,2]
[377484393,1754426697284,500.0,0.00024032,2]
[377484394,1754426697321,500.0,0.00024032,2]
[377484395,1754426697351,1041.19620046,0.00024032,2]
[377484396,1754426697379,500.0,0.00024032,2]
[377484397,1754426697421,1041.19620046,0.00024032,2]
[377484398,1754426697450,500.0,0.00024032,2]
[377484399,1754426697487,1041.19620046,0.00024032,2]
[377484400,1754426697517,500.0,0.00024032,2]
[377484401,1754426697547,500.0,0.00024032,2]
[377484402,1754426697580,1041.19620046,0.00024032,2]
[377484403,1754426697608,500.0,0.00024032,2]
[377484404,1754426697639,1041.19620046,0.00024032,2]
[377484405,1754426697669,500.0,0.00024032,2]
[377484406,1754426697696,500.0,0.00024032,2]
[377484407,1754426697728,1041.19620046,0.00024032,2]
[377484408,1754426697759,1041.19620046,0.00024032,2]
[377484409,1754426697795,1041.19620046,0.00024032,2]
[377484410,1754426697826,1041.19620046,0.00024032,2]
[377484411,1754426697856,1041.19620046,0.00024032,2]
[377484412,1754426697886,500.0,0.00024032,2]
[377484413,1754426697921,1041.19620046,0.00024032,2]
[377484414,1754426697953,213.04254729,0.00024032,2]
[377484415,1754426697979,828.15365317,0.00024032,2]
[377484416,1754426698021,1041.19620046,0.00024032,2]
[377484417,1754426698050,1041.19620046,0.00024032,2]
[377484418,1754426698081,1041.19620046,0.00024032,2]
[377484419,1754426698114,1041.19620046,0.00024032,2]
[377484420,1754426698259,1041.19620046,0.00024032,2]
[377484421,1754426698451,1041.19620046,0.00024032,2]
[377484422,1754426698483,1041.19620046,0.00024032,2]
[377484423,1754426698517,1041.19620046,0.00024032,2]
[377484424,1754426698560,1041.19620046,0.00024032,2]
[377484425,1754426698596,1041.19620046,0.00024032,2]
[377484426,1754426698630,1041.19620046,0.00024032,2]
[377484427,1754426698660,1041.19620046,0.00024032,2]
[377484428,1754426698694,1041.19620046,0.00024032,2]
[377484429,1754426698725,1041.19620046,0.00024032,2]
[377484430,1754426698766,1041.19620046,0.00024032,2]
[377484431,1754426698802,1041.19620046,0.00024032,2]
[377484432,1754426698839,12.70713947,0.00024032,2]
[377484433,1754426698864,1028.48906099,0.00024032,2]
[377484434,1754426698916,1041.19620046,0.00024032,2]
[377484435,1754426698947,1041.19620046,0.00024032,2]
[377484436,1754426698981,1041.19620046,0.00024032,2]
[377484437,1754426703194,200.70494072,0.000252,8]
[377484438,1754426705744,499.99999999,0.00024032,2]
[377484439,1754426716756,500.0,0.00024032,2]
[377484440,1754426721236,500.0,0.00024032,2]
[377484441,1754426721960,500.0,0.00024032,2]
[377484442,1754426722363,500.0,0.00024032,2]
[377484443,1754426722395,500.0,0.00024032,2]
[377484444,1754426722432,500.0,0.00024032,2]
[377484445,1754426722467,500.0,0.00024032,2]
[377484446,1754426722505,500.0,0.00024032,2]
[377484447,1754426722541,500.0,0.00024032,2]
[377484448,1754426722578,500.0,0.00024032,2]
[377484449,1754426722614,500.0,0.00024032,2]
[377484450,1754426722652,500.0,0.00024032,2]
[377484451,1754426722685,500.0,0.00024032,2]
[377484452,1754426722723,500.0,0.00024032,2]
[377484453,1754426722757,500.0,0.00024032,2]
[377484454,1754426722793,500.0,0.00024032,2]
[377484455,1754426722824,500.0,0.00024032,2]
[377484456,1754426722859,500.0,0.00024032,2]
[377484457,1754426722894,500.0,0.00024032,2]
[377484458,1754426745189,347.06540056,0.00024032,2]
[377484460,1754426783983,181.47,0.00025,7]
[377484462,1754426831377,526.215884,0.00013699,2]
[377484463,1754426831616,526.215884,0.00020187,2]
[377484464,1754426836409,160.0,0.00024033,2]
[377484466,1754426855142,160.0,0.0002,3]
[377484467,1754426855525,161.31,0.00025,7]
[377484468,1754426878824,1628.42516908,0.00023866,2]
[377484469,1754426878847,17500.0,0.00023866,2]
[377484470,1754426878869,5771.57483092,0.00023866,2]
[377484471,1754426882799,5000.0,0.000252,8]
[377484474,1754426898584,5000.0,0.000252,8]
[377484475,1754426937382,164.71783837,0.00023947,2]
[377484476,1754426942312,164.71783836,0.00023956,2]
[377484477,1754426950339,666.0,0.00023965,2]
[377484478,1754426957723,5000.0,0.000252,8]
[377484479,1754426984125,2556.06396077,0.000231,2]
[377484481,1754427029094,8176.92553158,0.00023219,2]
[377484482,1754427029118,17500.0,0.00023219,2]
[377484483,1754427029141,8023.48378882,0.00023219,2]
[377484519,1754427032642,-300.0,0.00024046,2]
[377484521,1754427032652,-300.0,0.00024046,2]
[377484523,1754427032664,-1200.0,0.00024046,2]
[377484525,1754427032674,-300.0,0.00024046,2]
[377484528,1754427032683,-358.40828362,0.00024047,2]
[377484530,1754427032693,-500.0,0.00024047,2]
[377484531,1754427032702,-500.0,0.00024047,2]
[377484534,1754427032712,-289.76601394,0.00024047,2]
[377484536,1754427032722,-500.0,0.00024047,2]
[377484538,1754427032731,-500.0,0.00024047,2]
[377484540,1754427032741,-500.0,0.00024047,2]
[377484542,1754427032751,-500.0,0.00024047,2]
[377484544,1754427032760,-500.0,0.00024047,2]
[377484546,1754427032769,-500.0,0.00024047,2]
[377484547,1754427032778,-500.0,0.00024047,2]
[377484550,1754427032788,-500.0,0.00024047,2]
[377484552,1754427032798,-374.3202099,0.00024047,2]
[377484554,1754427032807,-500.0,0.00024047,2]
[377484557,1754427032816,-500.0,0.00024047,2]
[377484559,1754427032826,-500.0,0.00024047,2]
[377484561,1754427032836,-430.16717593,0.00024047,2]
[377484563,1754427032845,-500.0,0.00024047,2]
[377484565,1754427032855,-500.0,0.00024047,2]
[377484567,1754427032864,-428.62976324,0.00024047,2]
[377484569,1754427032875,-500.0,0.00024047,2]
[377484571,1754427032885,-500.0,0.00024047,2]
[377484573,1754427032895,-92.28625776,0.00024047,2]
[377484575,1754427032907,-180.56385454,0.00024047,2]
[377484577,1754427032917,-629.94289527,0.00024047,2]
[377484579,1754427032927,-500.0,0.00024047,2]
[377484581,1754427032936,-500.0,0.00024047,2]
[377484583,1754427032946,-532.56010484,0.00024047,2]
[377484584,1754427032956,-500.0,0.00024047,2]
[377484586,1754427032965,-500.0,0.00024047,2]
[377484588,1754427032975,-500.0,0.00024047,2]
[377484590,1754427032984,-500.0,0.00024047,2]
[377484592,1754427032993,-174.73594404,0.00024047,2]
[377484594,1754427033002,-500.0,0.00024047,2]
[377484596,1754427033012,-500.0,0.00024047,2]
[377484597,1754427033022,-500.0,0.00024047,2]
[377484599,1754427033031,-500.0,0.00024047,2]
[377484601,1754427033041,-500.0,0.00024047,2]
[377484604,1754427033051,-500.0,0.00024047,2]
[377484606,1754427033060,-500.0,0.00024047,2]
[377484608,1754427033071,-400.0,0.00024047,2]
[377484610,1754427033081,-500.0,0.00024047,2]
[377484612,1754427033090,-500.0,0.00024047,2]
[377484613,1754427033099,-299.42895268,0.00024047,2]
[377484615,1754427033109,-500.0,0.00024047,2]
[377484617,1754427033119,-500.0,0.00024047,2]
[377484619,1754427033128,-500.0,0.00024047,2]
[377484621,1754427033138,-182.30875907,0.00024047,2]
[377484623,1754427033147,-4000.16537145,0.00024047,2]
[377484673,1754427034039,5000.0,0.000252,8]
[377484722,1754427038531,-1507.06645282,0.00024047,2]
[377484723,1754427038541,-28056.5955379,0.00024048,2]
[377484724,1754427038555,-500.0,0.00024056,2]
[377484725,1754427038564,-505.80899502,0.00024056,2]
[377484726,1754427038573,-500.0,0.0002433,2]
[377484727,1754427038582,-500.0,0.00024604,2]
[377484728,1754427038594,-501.12822639,0.00024767,2]
[377484729,1754427038604,-500.0,0.00024878,2]
[377484733,1754427038613,-1200.0,0.00024899,2]
[377484734,1754427038745,-15950.8601105,0.000249,2]
[377484735,1754427038756,-3505.51239154,0.0002499,2]
[377484736,1754427038765,-615.90160497,0.00025152,2]
[377484737,1754427038774,-150.0,0.00025155,2]
[377484738,1754427038784,-476.86,0.00025393,3]
[377484739,1754427038793,-14728.67614775,0.00025462,2]
[377484740,1754427038803,-2557.6945605,0.00025462,2]
[377484741,1754427038812,-929.7977789,0.00025503,2]
[377484742,1754427038822,-31901.7202209,0.00025513,2]
[377484743,1754427038831,-2789.3933367,0.00025513,2]
[377484744,1754427038841,-1084.47131745,0.00025515,2]
[377484745,1754427038850,-633.498,0.00025517,2]
[377484746,1754427038859,-565.479,0.00025517,2]
[377484747,1754427038868,-182.8786957,0.00025518,2]
[377484748,1754427038878,-127606.880884,0.00025523,2]
[377484749,1754427038887,-7438.3822312,0.00025523,2]
[377484750,1754427038896,-370000.0,0.00025533,2]
[377484751,1754427038906,-15950.8601105,0.00025563,2]
[377484752,1754427038915,-476.40734517,0.00025573,2]
[377484753,1754427038928,-468.48169952,0.00025573,2]
[377484754,1754427038938,-500.0,0.00025573,2]
[377484755,1754427038947,-500.0,0.00025573,2]
[377484756,1754427038958,-500.0,0.00025573,2]
[377484757,1754427038967,-500.0,0.00025573,2]
[377484758,1754427038978,-500.0,0.00025573,2]
[377484759,1754427038987,-501.1736456,0.00025573,2]
[377484760,1754427038996,-500.0,0.00025573,2]
[377484761,1754427039005,-500.0,0.00025573,2]
[377484762,1754427039015,-500.0,0.00025573,2]
[377484763,1754427039024,-500.0,0.00025573,2]
[377484764,1754427039033,-157.203,0.00025648,10]
[377484765,1754427039044,-179.40814277,0.00025648,10]
[377484766,1754427039053,-2557.69456046,0.00026058,2]
[377484767,1754427039063,-420.0,0.00026076,2]
[377484768,1754427039072,-232.0,0.00026076,2]
[377484769,1754427039081,-1000.0,0.00026121,2]
[377484770,1754427039091,-1000.0,0.00026121,2]
[377484771,1754427039100,-1000.0,0.00026121,2]
[377484772,1754427039109,-1000.0,0.00026121,2]
[377484773,1754427039118,-1000.0,0.00026121,2]
[377484774,1754427039127,-1000.0,0.00026121,2]
[377484775,1754427039136,-1000.0,0.00026121,2]
[377484776,1754427039145,-505.89293748,0.00026121,2]
[377484777,1754427039155,-1000.0,0.00026121,2]
[377484778,1754427039164,-563.99656607,0.00026181,2]
[377484779,1754427039173,-1680.0,0.00026195,2]
[377484780,1754427039182,-600.0,0.00026313,2]
[377484781,1754427039191,-364.67,0.00026313,2]
[377484782,1754427039201,-200.0,0.00026452,15]
[377484783,1754427039211,-300.0,0.00026452,15]
[377484784,1754427039221,-929.7977789,0.00026624,2]
[377484785,1754427039230,-2557.69456046,0.00026654,2]
[377484786,1754427039240,-1006.85863838,0.00026668,2]
[377484787,1754427039249,-1500.0,0.00026668,2]
[377484788,1754427039258,-1500.0,0.00026668,2]
[377484789,1754427039268,-1500.0,0.00026668,2]
[377484790,1754427039277,-1500.0,0.00026668,2]
[377484791,1754427039286,-1500.0,0.00026668,2]
[377484792,1754427039297,-1500.0,0.00026668,2]
[377484793,1754427039308,-1500.0,0.00026668,2]
[377484794,1754427039317,-526.215884,0.00026676,2]
[377484795,1754427039328,-151.0,0.000269,10]
[377484796,1754427039338,-14728.67614773,0.00026928,2]
[377484797,1754427039349,-1680.0,0.00026977,2]
[377484798,1754427039359,-650.63509,0.00027009,2]
[377484799,1754427039369,-15950.8601105,0.00027035,2]
[377484800,1754427039379,-151.0,0.000271,13]
[377484801,1754427039389,-929.7977789,0.00027206,2]
[377484802,1754427039398,-1500.0,0.00027216,2]
[377484803,1754427039407,-2000.0,0.00027216,2]
[377484804,1754427039417,-2000.0,0.00027216,2]
[377484805,1754427039427,-236.38931069,0.00027216,2]
[377484806,1754427039436,-363.30068067,0.00027216,2]
[377484807,1754427039445,-1509.38329096,0.00027216,2]
[377484808,1754427039454,-2000.0,0.00027216,2]
[377484809,1754427039465,-2557.69456046,0.00027249,2]
[377484810,1754427039474,-151.0,0.000273,13]
[377484811,1754427039484,-15950.8601105,0.00027363,2]
[377484812,1754427039493,-929.7977789,0.00027363,2]
[377484813,1754427039502,-150.0,0.00027373,2]
[377484814,1754427039511,-500.0,0.00027373,2]
[377484815,1754427039520,-500.0,0.00027373,2]
[377484816,1754427039529,-500.0,0.00027373,2]
[377484817,1754427039538,-275.76878478,0.00027373,2]
[377484818,1754427039550,-500.0,0.00027373,2]
[377484819,1754427039560,-500.0,0.00027373,2]
[377484820,1754427039569,-500.0,0.00027373,2]
[377484821,1754427039579,-500.0,0.00027373,2]
[377484822,1754427039590,-500.0,0.00027373,2]
[377484823,1754427039599,-500.0,0.00027373,2]
[377484824,1754427039608,-500.0,0.00027373,2]
[377484825,1754427039619,-500.0,0.00027373,2]
[377484826,1754427039628,-500.0,0.00027373,2]
[377484827,1754427039637,-500.0,0.00027373,2]
[377484828,1754427039646,-500.0,0.00027373,2]
[377484829,1754427039655,-501.38354254,0.00027373,2]
[377484830,1754427039664,-500.0,0.00027373,2]
[377484831,1754427039673,-500.0,0.00027373,2]
[377484832,1754427039682,-500.0,0.00027373,2]
[377484833,1754427039692,-500.0,0.00027373,2]
[377484834,1754427039701,-503.15138221,0.00027373,2]
[377484835,1754427039713,-500.0,0.00027373,2]
[377484836,1754427039723,-503.41513277,0.00027373,2]
[377484837,1754427039732,-601.2282729,0.00027373,2]
[377484838,1754427039741,-500.0,0.00027373,2]
[377484839,1754427039751,-500.0,0.00027373,2]
[377484840,1754427039761,-444.55153686,0.00027373,2]
[377484841,1754427039770,-500.0,0.00027373,2]
[377484842,1754427039780,-512.9978651,0.00027373,2]
[377484843,1754427039790,-500.0,0.00027373,2]
[377484844,1754427039800,-500.0,0.00027373,2]
[377484845,1754427039810,-500.0,0.00027373,2]
[377484846,1754427039821,-500.0,0.00027373,2]
[377484847,1754427039830,-520.68218373,0.00027373,2]
[377484848,1754427039839,-504.20056297,0.00027373,2]
[377484849,1754427039849,-525.60727636,0.00027373,2]
[377484850,1754427039859,-500.0,0.00027373,2]
[377484851,1754427039868,-500.0,0.00027373,2]
[377484852,1754427039878,-500.0,0.00027373,2]
[377484853,1754427039888,-500.0,0.00027373,2]
[377484854,1754427039898,-500.0,0.00027373,2]
[377484855,1754427039907,-500.0,0.00027373,2]
[377484856,1754427039917,-500.0,0.00027373,2]
[377484857,1754427039926,-500.0,0.00027373,2]
[377484858,1754427039935,-500.0,0.00027373,2]
[377484859,1754427039945,-503.0538355,0.00027373,2]
[377484860,1754427039954,-500.0,0.00027373,2]
[377484861,1754427039966,-500.0,0.00027373,2]
[377484862,1754427039976,-4648.9888945,0.00027387,2]
[377484863,1754427039985,-460.0,0.00027397,2]
[377484864,1754427039994,-461.67213963,0.00027397,2]
[377484865,1754427040004,-460.0,0.00027397,2]
[377484866,1754427040013,-460.0,0.00027397,2]
[377484867,1754427040023,-331.78322267,0.00027397,2]
[377484869,1754427040031,-460.0,0.00027397,2]
[377484870,1754427040040,-460.0,0.00027397,2]
[377484871,1754427040049,-460.0,0.00027397,2]
[377484872,1754427040059,-460.0,0.00027397,2]
[377484873,1754427040068,-460.0,0.00027397,2]
[377484874,1754427040077,-460.0,0.00027397,2]
[377484876,1754427040087,-460.0,0.00027397,2]
[377484877,1754427040095,-471.16963835,0.00027397,2]
[377484878,1754427040105,-460.0,0.00027397,2]
[377484879,1754427040114,-460.0,0.00027397,2]
[377484880,1754427040124,-460.0,0.00027397,2]
[377484881,1754427040133,-460.0,0.00027397,2]
[377484882,1754427040143,-460.0,0.00027397,2]
[377484883,1754427040153,-460.0,0.00027397,2]
[377484884,1754427040163,-241.17985278,0.00027397,2]
[377484885,1754427040173,-460.0,0.00027397,2]
[377484887,1754427040182,-460.0,0.00027397,2]
[377484888,1754427040191,-460.0,0.00027397,2]
[377484889,1754427040200,-364.64439175,0.00027397,2]
[377484890,1754427040211,-460.0,0.00027397,2]
[377484891,1754427040220,-460.0,0.00027397,2]
[377484892,1754427040229,-460.0,0.00027397,2]
[377484893,1754427040239,-481.0094176,0.00027397,2]
[377484894,1754427040248,-460.0,0.00027397,2]
[377484895,1754427040258,-169.49896597,0.00027397,2]
[377484896,1754427040267,-460.0,0.00027397,2]
[377484897,1754427040277,-460.0,0.00027397,2]
[377484898,1754427040286,-460.0,0.00027397,2]
[377484899,1754427040295,-460.0,0.00027397,2]
[377484900,1754427040304,-460.0,0.00027397,2]
[377484901,1754427040314,-460.0,0.00027397,2]
[377484902,1754427040324,-460.0,0.00027397,2]
[377484903,1754427040333,-460.0,0.00027397,2]
[377484904,1754427040343,-460.0,0.00027397,2]
[377484906,1754427040352,-460.0,0.00027397,2]
[377484908,1754427040362,-460.0,0.00027397,2]
[377484910,1754427040371,-460.0,0.00027397,2]
[377484912,1754427040382,-460.0,0.00027397,2]
[377484913,1754427040392,-460.0,0.00027397,2]
[377484914,1754427040400,-460.0,0.00027397,2]
[377484915,1754427040409,-460.0,0.00027397,2]
[377484916,1754427040418,-460.0,0.00027397,2]
[377484917,1754427040428,-460.0,0.00027397,2]
[377484918,1754427040437,-460.0,0.00027397,2]
[377484919,1754427040447,-460.0,0.00027397,2]
[377484920,1754427040456,-460.0,0.00027397,2]
[377484921,1754427040465,-518.68,0.00027397,2]
[377484923,1754427040475,-460.0,0.00027397,2]
[377484926,1754427040484,-465.10012553,0.00027397,2]
[377484927,1754427040494,-460.0,0.00027397,2]
[377484930,1754427040503,-460.0,0.00027397,2]
[377484932,1754427040513,-522.68,0.00027397,2]
[377484934,1754427040522,-460.0,0.00027397,2]
[377484935,1754427040531,-460.0,0.00027397,2]
[377484937,1754427040540,-460.0,0.00027397,2]
[377484939,1754427040552,-463.76733861,0.00027397,2]
[377484941,1754427040562,-460.0,0.00027397,2]